[Event "6e festival d'échecs d'Allauch"]
[Site "Allauch, France"]
[Date "2024.08.30"]
[Round "8.7"]
[White "Mouly, Maxime"]
[Black "Anton, Christophe"]
[Result "0-1"]
[TimeControl "1 h 30 min (+30s/coup)"]
[WhiteElo "1411"]
[BlackElo "1697"]

1. e4 {[%clk 01:30:58]} c5 {[%clk 01:30:56]} {[%emt 00:00:06]} 2. c3 {[%clk
01:31:24]} {[%emt 00:00:02]} Nc6 {[%clk 01:31:11]} {[%emt 00:00:16]} 3. d4
{[%clk 01:31:47]} {[%emt 00:00:06]} cxd4 {[%clk 01:31:35]} {[%emt 00:00:06]} 4.
cxd4 {[%clk 01:32:10]} {[%emt 00:00:07]} g6 {[%clk 01:29:39]} {[%emt 00:02:26]}
5. d5 {[%clk 01:31:41]} {[%emt 00:00:58]} Nb8 {[%clk 01:29:55]} {[%emt
00:00:15]} 6. Nf3 {[%clk 01:31:18]} {[%emt 00:00:52]} Bg7 {[%clk 01:30:18]}
{[%emt 00:00:08]} 7. Nc3 {[%clk 01:31:08]} {[%emt 00:00:40]} Qb6 {[%clk
01:27:12]} {[%emt 00:03:35]} 8. Qb3 {[%clk 01:30:22]} {[%emt 00:01:17]} Qxb3
{[%clk 01:26:53]} {[%emt 00:00:49]} 9. axb3 {[%clk 01:30:46]} {[%emt 00:00:06]}
a6 {[%clk 01:27:01]} {[%emt 00:00:23]} 10. Be3 {[%clk 01:30:40]} {[%emt
00:00:35]} d6 {[%clk 01:27:16]} {[%emt 00:00:15]} 11. Nb5 {[%clk 01:30:13]}
{[%emt 00:00:56]} Kd8 {[%clk 01:23:37]} {[%emt 00:04:09]} 12. Bb6+ {[%clk
01:30:17]} {[%emt 00:00:26]} Kd7 {[%clk 01:22:43]} {[%emt 00:01:24]} 13. Nc7
{[%clk 01:30:12]} {[%emt 00:00:35]} Bxb2 {[%clk 01:22:10]} {[%emt 00:01:04]} 14.
Bb5+ {[%clk 01:29:50]} {[%emt 00:00:51]} axb5 {[%clk 01:22:00]} {[%emt
00:00:41]} 15. Rxa8 {[%clk 01:30:11]} {[%emt 00:00:09]} Na6 {[%clk 01:19:14]}
{[%emt 00:03:16]} 16. Nxb5 {[%clk 01:28:42]} {[%emt 00:01:58]} Nf6 {[%clk
01:18:40]} {[%emt 00:01:05]} 17. Na7 {[%clk 01:28:03]} {[%emt 00:01:09]} Nxe4
{[%clk 01:15:56]} {[%emt 00:03:13]} 18. Rxc8 {[%clk 01:27:30]} {[%emt
00:01:04]} Rxc8 {[%clk 01:15:27]} 19. Nxc8 {[%clk 01:27:54]} {[%emt 00:01:05]}
Kxc8 {[%clk 01:15:30]} {[%emt 00:00:28]} 20. O-O {[%clk 01:28:04]} {[%emt
00:00:20]} Bc3 {[%clk 01:14:07]} {[%emt 00:01:52]} 21. Rc1 {[%clk 01:27:45]}
{[%emt 00:00:46]} Kd7 {[%clk 01:14:20]} {[%emt 00:00:20]} 22. Ng5 {[%clk
01:27:12]} {[%emt 00:01:02]} Bd2 {[%clk 01:13:43]} {[%emt 00:01:08]} 23. Rc2
{[%clk 01:26:12]} {[%emt 00:01:29]} Bxg5 {[%clk 01:13:24]} {[%emt 00:00:50]} 24.
b4 {[%clk 01:25:19]} {[%emt 00:01:22]} f5 {[%clk 01:07:43]} {[%emt 00:06:11]}
25. f3 {[%clk 01:24:37]} {[%emt 00:01:12]} Nf6 {[%clk 01:05:10]} {[%emt
00:03:03]} 26. b5 {[%clk 01:24:15]} {[%emt 00:00:53]} Nc5 {[%clk 01:03:59]}
{[%emt 00:01:40]} 27. Ra2 {[%clk 01:23:50]} {[%emt 00:00:55]} Nxd5 {[%clk
01:04:09]} {[%emt 00:00:21]} 28. Bxc5 {[%clk 01:23:01]} {[%emt 00:01:18]} dxc5
{[%clk 01:04:32]} {[%emt 00:00:06]} 29. Ra7 {[%clk 01:23:03]} {[%emt 00:00:28]}
Kc7 {[%clk 01:04:36]} {[%emt 00:00:27]} 30. Ra8 {[%clk 01:23:14]} {[%emt
00:00:20]} Bf6 {[%clk 01:04:50]} {[%emt 00:00:16]} 31. Rf8 {[%clk 01:23:00]}
{[%emt 00:00:42]} Kb6 {[%clk 01:05:12]} {[%emt 00:00:09]} 32. Rb8 {[%clk
01:22:58]} {[%emt 00:00:30]} Nc7 {[%clk 01:01:52]} {[%emt 00:03:52]} 33. Rf8
{[%clk 01:22:29]} {[%emt 00:00:58]} Kxb5 {[%clk 01:01:23]} {[%emt 00:01:00]} 34.
Rf7 {[%clk 01:22:42]} {[%emt 00:00:17]} h5 {[%clk 01:01:27]} {[%emt 00:00:26]}
35. Rf8 {[%clk 01:22:52]} {[%emt 00:00:19]} c4 {[%clk 01:01:47]} {[%emt
00:00:11]} 36. Kf2 {[%clk 01:22:59]} {[%emt 00:00:22]} Kc6 {[%clk 01:01:48]}
{[%emt 00:00:29]} 37. Ke3 {[%clk 01:23:19]} {[%emt 00:00:10]} b5 {[%clk
01:02:06]} {[%emt 00:00:12]} 38. Kd2 {[%clk 01:23:39]} {[%emt 00:00:10]} b4
{[%clk 01:01:16]} {[%emt 00:01:21]} 39. Kc2 {[%clk 01:23:58]} {[%emt 00:00:10]}
b3+ {[%clk 01:00:57]} {[%emt 00:00:49]} 40. Kb1 {[%clk 01:24:22]} {[%emt
00:00:06]} c3 {[%clk 00:56:55]} {[%emt 00:04:33]} 41. Rb8 {[%clk 01:23:58]}
{[%emt 00:00:53]} c2+ {[%clk 00:57:05]} {[%emt 00:00:20]} 42. Kc1 {[%clk
01:24:17]} {[%emt 00:00:11]} Bg5+ {[%clk 00:57:28]} {[%emt 00:00:07]} 43. Kb2
{[%clk 01:24:00]} {[%emt 00:00:47]} c1=Q+ {[%clk 00:57:51]} {[%emt 00:00:07]}
44. Kxb3 {[%clk 01:24:23]} {[%emt 00:00:06]} Qb1+ {[%clk 00:58:11]} {[%emt
00:00:10]} 45. Kc4 {[%clk 01:24:43]} {[%emt 00:00:11]} Qb4+ {[%emt 00:00:08]}
46. Rb7 Qxb7 {[%clk 00:58:33]} 47. g3 {[%clk 01:24:59]} {[%emt 00:00:13]} Qb5+
{[%clk 00:58:34]} {[%emt 00:00:30]} 48. Kc3 {[%clk 01:25:22]} {[%emt 00:00:06]}
Qe5+ {[%clk 00:58:25]} {[%emt 00:00:38]} 49. Kc4 {[%clk 01:25:40]} {[%emt
00:00:14]} Qd5+ {[%clk 00:58:25]} {[%emt 00:00:30]} 50. Kc3 {[%clk 01:25:59]}
{[%emt 00:00:11]} Nb5+ {[%clk 00:58:10]} {[%emt 00:00:44]} 51. Kc2 {[%clk
01:25:45]} {[%emt 00:00:44]} Qxf3 {[%clk 00:58:35]} {[%emt 00:00:06]} 52. h4
{[%clk 01:25:56]} {[%emt 00:00:18]} Kc5 {[%clk 00:58:59]} {[%emt 00:00:07]} 53.
g4 {[%clk 01:26:15]} {[%emt 00:00:11]} fxg4 {[%clk 00:59:19]} {[%emt 00:00:10]}
54. hxg5 {[%clk 01:26:34]} {[%emt 00:00:11]} g3 {[%clk 00:59:40]} {[%emt
00:00:09]} 55. Kc1 {[%clk 01:26:32]} {[%emt 00:00:32]} Qf2 {[%clk 01:00:00]}
{[%emt 00:00:09]} 0-1

[Event "6e festival d'échecs d'Allauch"]
[Site "Allauch, France"]
[Date "2024.08.30"]
[Round "8.8"]
[White "Ghio, Maxime"]
[Black "Menager, Stephane"]
[Result "1-0"]
[TimeControl "1 h 30 min (+30s/coup)"]
[WhiteElo "1641"]
[BlackElo "1660"]

1. d4 {[%clk 01:30:58]} {[%emt 00:00:02]} d5 {[%clk 01:30:54]} {[%emt
00:00:07]} 2. c4 {[%clk 01:31:24]} {[%emt 00:00:05]} c6 {[%clk 01:30:55]}
{[%emt 00:00:28]} 3. Nf3 {[%clk 01:31:41]} {[%emt 00:00:14]} h6 {[%clk
01:29:45]} {[%emt 00:01:39]} 4. Nc3 {[%clk 01:31:55]} {[%emt 00:00:15]} Nf6
{[%clk 01:30:06]} {[%emt 00:00:10]} 5. e3 {[%clk 01:31:28]} {[%emt 00:00:58]}
Bf5 {[%clk 01:29:16]} {[%emt 00:01:18]} 6. Qb3 {[%clk 01:31:14]} {[%emt
00:00:43]} Qb6 {[%clk 01:19:45]} {[%emt 00:10:02]} 7. Qxb6 {[%clk 01:28:43]}
{[%emt 00:03:01]} axb6 {[%clk 01:20:12]} {[%emt 00:00:03]} 8. cxd5 {[%clk
01:28:10]} {[%emt 00:01:03]} Nxd5 {[%emt 00:00:06]} 9. Nxd5 {[%clk 01:26:39]}
{[%emt 00:01:59]} cxd5 {[%clk 01:21:05]} {[%emt 00:00:03]} 10. Bb5+ {[%clk
01:25:56]} {[%emt 00:01:12]} Bd7 {[%clk 01:21:33]} {[%emt 00:00:02]} 11. Bd3
{[%clk 01:25:42]} {[%emt 00:00:44]} Bg4 {[%clk 01:17:18]} {[%emt 00:04:46]} 12.
Ne5 {[%clk 01:24:09]} {[%emt 00:02:02]} Bd7 {[%clk 01:16:16]} {[%emt 00:01:33]}
13. Bd2 {[%clk 01:22:30]} {[%emt 00:02:09]} e6 {[%clk 01:14:31]} {[%emt
00:02:16]} 14. a3 {[%clk 01:20:52]} {[%emt 00:02:07]} Bd6 {[%clk 01:10:55]}
{[%emt 00:04:07]} 15. Rc1 {[%clk 01:15:10]} {[%emt 00:06:12]} Bxe5 {[%clk
01:05:23]} {[%emt 00:06:03]} 16. dxe5 {[%clk 01:15:33]} {[%emt 00:00:07]} O-O
{[%clk 01:05:28]} {[%emt 00:00:24]} 17. O-O {[%clk 01:10:02]} {[%emt 00:06:00]}
Re8 {[%clk 00:57:17]} {[%emt 00:08:42]} 18. f4 {[%clk 01:07:05]} {[%emt
00:03:28]} Bc6 {[%clk 00:53:30]} {[%emt 00:04:17]} 19. Bb4 {[%clk 01:02:30]}
{[%emt 00:05:04]} Nd7 {[%clk 00:45:56]} {[%emt 00:08:04]} 20. Bd6 {[%clk
00:59:41]} {[%emt 00:03:19]} b5 {[%clk 00:45:06]} {[%emt 00:01:20]} 21. Rf2
{[%clk 00:55:55]} {[%emt 00:04:15]} Nb6 {[%clk 00:44:24]} {[%emt 00:01:12]} 22.
b3 {[%clk 00:54:27]} {[%emt 00:01:58]} Nc8 {[%clk 00:41:16]} {[%emt 00:03:38]}
23. Bc5 {[%clk 00:54:23]} {[%emt 00:00:34]} g6 {[%clk 00:31:57]} {[%emt
00:09:49]} 24. h3 {[%clk 00:45:05]} {[%emt 00:09:48]} Kg7 {[%clk 00:18:18]}
{[%emt 00:14:09]} 25. Kh2 {[%clk 00:44:34]} {[%emt 00:01:00]} Ne7 {[%clk
00:16:57]} {[%emt 00:01:51]} 26. g4 {[%clk 00:43:52]} {[%emt 00:01:11]} Bd7
{[%clk 00:10:49]} {[%emt 00:06:39]} 27. Bd6 {[%clk 00:42:14]} {[%emt 00:02:08]}
Rac8 {[%clk 00:08:03]} {[%emt 00:03:16]} 28. Rxc8 {[%clk 00:42:07]} {[%emt
00:00:38]} Nxc8 {[%clk 00:08:31]} {[%emt 00:00:02]} 29. Bb4 {[%clk 00:42:01]}
{[%emt 00:00:35]} Ne7 {[%clk 00:08:29]} {[%emt 00:00:33]} 30. Rc2 {[%clk
00:38:50]} {[%emt 00:03:41]} Bc6 {[%clk 00:08:42]} {[%emt 00:00:18]} 31. Rc5
{[%clk 00:38:06]} {[%emt 00:01:13]} Nc8 {[%clk 00:04:54]} {[%emt 00:04:19]} 32.
Bxb5 {[%clk 00:37:14]} {[%emt 00:01:22]} Na7 {[%clk 00:05:00]} {[%emt
00:00:25]} 33. Bd3 {[%clk 00:36:12]} {[%emt 00:01:31]} Rd8 {[%clk 00:04:07]}
{[%emt 00:01:24]} 34. Rc3 {[%clk 00:34:17]} {[%emt 00:02:24]} d4 {[%clk
00:04:26]} {[%emt 00:00:11]} 35. exd4 {[%clk 00:34:23]} {[%emt 00:00:23]} Rxd4
{[%clk 00:04:51]} {[%emt 00:00:06]} 36. Bc5 {[%clk 00:34:42]} {[%emt 00:00:11]}
Rxf4 {[%clk 00:04:18]} {[%emt 00:01:03]} 37. Bxa7 {[%clk 00:34:09]} {[%emt
00:01:02]} Rf3 {[%clk 00:02:27]} {[%emt 00:02:22]} 38. Bd4 {[%clk 00:32:52]}
{[%emt 00:01:46]} Rf4 {[%clk 00:02:02]} {[%emt 00:00:55]} 39. Be3 {[%clk
00:31:48]} {[%emt 00:01:33]} 1-0

[Event "6e festival d'échecs d'Allauch"]
[Site "Allauch, France"]
[Date "2024.08.31"]
[Round "9.1"]
[White "Degraeve, Remy"]
[Black "Durand-Benmoussa, Roman"]
[Result "1-0"]
[TimeControl "1 h 30 min (+30s/coup)"]
[WhiteElo "2402"]
[BlackElo "2109"]

1. e4 {[%clk 01:28:05]} {[%emt 00:02:55]} e5 {[%clk 01:30:54]} {[%emt
00:00:05]} 2. Nf3 {[%clk 01:28:16]} {[%emt 00:00:19]} Nc6 {[%clk 01:31:19]}
{[%emt 00:00:06]} 3. Bb5 {[%clk 01:28:19]} {[%emt 00:00:27]} a6 {[%clk
01:31:38]} {[%emt 00:00:11]} 4. Ba4 {[%clk 01:28:47]} {[%emt 00:00:03]} f5
{[%clk 01:30:18]} {[%emt 00:01:52]} 5. d4 {[%clk 01:29:00]} {[%emt 00:00:15]}
exd4 {[%clk 01:30:41]} {[%emt 00:00:07]} 6. e5 {[%clk 01:29:16]} {[%emt
00:00:14]} b5 {[%clk 01:31:07]} {[%emt 00:00:04]} 7. Bb3 {[%clk 01:29:43]}
{[%emt 00:00:02]} Na5 {[%clk 01:31:32]} {[%emt 00:00:06]} 8. Bd5 {[%clk
01:29:17]} {[%emt 00:00:56]} c6 {[%clk 01:28:05]} {[%emt 00:03:56]} 9. Bxg8
{[%clk 01:29:12]} {[%emt 00:00:35]} Rxg8 {[%clk 01:28:34]} {[%emt 00:00:01]} 10.
Qxd4 {[%clk 01:29:22]} {[%emt 00:00:20]} Bb7 {[%clk 01:28:57]} {[%emt
00:00:08]} 11. Nc3 {[%clk 01:29:25]} {[%emt 00:00:27]} c5 {[%clk 01:29:04]}
{[%emt 00:00:23]} 12. Qd3 {[%clk 01:29:50]} {[%emt 00:00:05]} Qb6 {[%clk
01:28:16]} {[%emt 00:01:18]} 13. Qxf5 {[%clk 01:17:34]} {[%emt 00:12:46]} h6
{[%clk 01:27:30]} {[%emt 00:01:15]} 14. h4 {[%clk 00:57:45]} {[%emt 00:20:19]}
O-O-O {[%clk 01:11:10]} {[%emt 00:16:50]} 15. Bf4 {[%clk 00:56:38]} {[%emt
00:01:36]} Qe6 {[%clk 01:07:47]} {[%emt 00:03:54]} 16. Qxe6 {[%clk 00:52:55]}
{[%emt 00:04:13]} dxe6 {[%clk 01:08:15]} {[%emt 00:00:01]} 17. Ke2 {[%clk
00:46:16]} {[%emt 00:07:08]} Be7 {[%clk 01:07:10]} {[%emt 00:01:35]} 18. Rad1
{[%clk 00:42:29]} {[%emt 00:04:18]} Rxd1 {[%clk 00:59:22]} {[%emt 00:08:18]} 19.
Nxd1 {[%clk 00:41:34]} {[%emt 00:01:25]} g5 {[%clk 00:54:56]} {[%emt 00:04:57]}
20. hxg5 {[%clk 00:41:56]} {[%emt 00:00:07]} hxg5 {[%clk 00:55:22]} {[%emt
00:00:04]} 21. Bg3 {[%clk 00:39:50]} {[%emt 00:02:35]} g4 {[%clk 00:52:53]}
{[%emt 00:03:00]} 22. Ne1 {[%clk 00:40:15]} {[%emt 00:00:04]} Nc6 {[%clk
00:51:28]} {[%emt 00:01:56]} 23. c3 {[%clk 00:37:14]} {[%emt 00:03:31]} Rg7
{[%clk 00:28:17]} {[%emt 00:23:41]} 24. Ne3 {[%clk 00:37:16]} {[%emt 00:00:28]}
Kd7 {[%clk 00:27:46]} {[%emt 00:01:01]} 25. Nd3 {[%clk 00:35:55]} {[%emt
00:01:50]} c4 {[%clk 00:25:36]} {[%emt 00:02:40]} 26. Nf4 {[%clk 00:36:21]}
{[%emt 00:00:05]} Nd8 {[%clk 00:22:22]} {[%emt 00:03:44]} 27. Bh4 {[%clk
00:33:10]} {[%emt 00:03:40]} Bxh4 {[%clk 00:14:43]} {[%emt 00:08:09]} 28. Rxh4
{[%clk 00:33:33]} {[%emt 00:00:07]} g3 {[%clk 00:15:11]} {[%emt 00:00:03]} 29.
Nh5 {[%clk 00:31:42]} {[%emt 00:02:20]} Rg5 {[%clk 00:13:17]} {[%emt 00:02:24]}
30. f4 {[%clk 00:32:06]} {[%emt 00:00:06]} Rg6 {[%clk 00:13:40]} {[%emt
00:00:07]} 31. Rh3 {[%clk 00:31:52]} {[%emt 00:00:44]} Be4 {[%clk 00:11:25]}
{[%emt 00:02:45]} 32. Nf6+ {[%clk 00:31:39]} {[%emt 00:00:44]} Rxf6 {[%clk
00:11:48]} {[%emt 00:00:08]} 33. exf6 {[%clk 00:32:06]} {[%emt 00:00:02]} Nf7
{[%clk 00:11:47]} {[%emt 00:00:32]} 34. Rxg3 {[%clk 00:32:28]} {[%emt
00:00:07]} Bd3+ {[%clk 00:12:13]} {[%emt 00:00:04]} 35. Kf3 {[%clk 00:32:30]}
{[%emt 00:00:28]} Nd6 {[%clk 00:12:26]} {[%emt 00:00:18]} 36. Rg7+ {[%clk
00:32:56]} {[%emt 00:00:04]} 1-0

[Event "6e festival d'échecs d'Allauch"]
[Site "Allauch, France"]
[Date "2024.08.31"]
[Round "9.2"]
[White "Chaumet, Etienne"]
[Black "Degraeve, Jean-Marc"]
[Result "0-1"]
[TimeControl "1 h 30 min (+30s/coup)"]
[WhiteElo "2077"]
[BlackElo "2487"]

1. e4 {[%emt 00:03:19]} c5 {[%clk 01:27:17]} {[%emt 00:00:26]} 2. Nf3 {[%clk
01:31:20]} {[%emt 00:00:07]} Nc6 {[%clk 01:27:34]} {[%emt 00:00:13]} 3. d4
{[%clk 01:31:42]} {[%emt 00:00:08]} cxd4 {[%clk 01:27:58]} {[%emt 00:00:06]} 4.
Nxd4 {[%clk 01:32:03]} {[%emt 00:00:09]} e5 {[%clk 01:28:20]} {[%emt 00:00:08]}
5. Nb5 {[%clk 01:32:23]} {[%emt 00:00:10]} d6 {[%clk 01:28:45]} {[%emt
00:00:04]} 6. N1c3 {[%clk 01:32:19]} {[%emt 00:00:34]} a6 {[%clk 01:28:09]}
{[%emt 00:01:06]} 7. Na3 {[%clk 01:32:43]} {[%emt 00:00:06]} Be7 {[%clk
01:27:16]} {[%emt 00:01:24]} 8. Nd5 {[%clk 01:25:54]} {[%emt 00:07:18]} Nf6
{[%clk 01:23:42]} {[%emt 00:04:04]} 9. Nxf6+ {[%clk 01:20:03]} {[%emt
00:06:21]} Bxf6 {[%clk 01:24:06]} {[%emt 00:00:07]} 10. Nc4 {[%clk 01:20:17]}
{[%emt 00:00:16]} Be7 {[%clk 01:24:08]} {[%emt 00:00:28]} 11. Be3 {[%clk
01:19:15]} {[%emt 00:01:32]} Be6 {[%clk 01:24:22]} {[%emt 00:00:16]} 12. Qd2
{[%clk 01:15:04]} {[%emt 00:04:41]} O-O {[%clk 01:09:37]} {[%emt 00:15:15]} 13.
Bb6 {[%clk 01:08:28]} {[%emt 00:07:06]} Qd7 {[%clk 00:58:47]} {[%emt 00:11:20]}
14. Rd1 {[%clk 01:07:03]} {[%emt 00:01:55]} Bd8 {[%clk 00:56:14]} {[%emt
00:03:02]} 15. Be3 {[%clk 00:59:43]} {[%emt 00:07:51]} b5 {[%clk 00:53:14]}
{[%emt 00:03:30]} 16. Nb6 {[%clk 00:52:56]} {[%emt 00:07:17]} Bxb6 {[%clk
00:53:22]} {[%emt 00:00:22]} 17. Bxb6 {[%clk 00:53:23]} {[%emt 00:00:02]} Qb7
{[%clk 00:53:07]} {[%emt 00:00:45]} 18. Be3 {[%clk 00:51:56]} {[%emt 00:01:57]}
Rfd8 {[%clk 00:52:38]} {[%emt 00:00:59]} 19. Bd3 {[%clk 00:42:59]} {[%emt
00:09:27]} d5 {[%clk 00:52:33]} {[%emt 00:00:35]} 20. Qe2 {[%clk 00:37:41]}
{[%emt 00:05:49]} Nb4 {[%clk 00:51:18]} {[%emt 00:01:45]} 21. Bd2 {[%clk
00:37:08]} {[%emt 00:01:04]} Nxd3+ {[%clk 00:50:57]} {[%emt 00:00:50]} 22. cxd3
{[%clk 00:37:31]} {[%emt 00:00:07]} dxe4 {[%clk 00:51:20]} {[%emt 00:00:07]} 23.
Qxe4 {[%clk 00:34:35]} {[%emt 00:03:25]} Bd5 {[%clk 00:50:28]} {[%emt
00:01:23]} 24. Qg4 {[%clk 00:34:58]} {[%emt 00:00:08]} Rd6 {[%clk 00:47:41]}
{[%emt 00:03:17]} 25. f3 {[%clk 00:30:36]} {[%emt 00:04:52]} Rg6 {[%clk
00:47:34]} {[%emt 00:00:36]} 26. Qh3 {[%clk 00:30:56]} {[%emt 00:00:10]} Be6
{[%clk 00:47:59]} {[%emt 00:00:05]} 27. Qh4 {[%clk 00:29:37]} {[%emt 00:01:48]}
Rxg2 {[%clk 00:48:21]} {[%emt 00:00:09]} 28. Rf1 {[%clk 00:29:05]} {[%emt
00:01:01]} Bxa2 {[%clk 00:48:20]} {[%emt 00:00:31]} 29. Rf2 {[%clk 00:28:04]}
{[%emt 00:01:31]} Rg6 {[%clk 00:47:51]} {[%emt 00:00:59]} 30. Bc3 {[%clk
00:27:10]} {[%emt 00:01:25]} Bb3 {[%clk 00:47:45]} {[%emt 00:00:36]} 31. Rdd2
{[%clk 00:27:10]} {[%emt 00:00:30]} a5 {[%clk 00:46:07]} {[%emt 00:02:09]} 32.
Kf1 {[%clk 00:23:24]} {[%emt 00:04:16]} f6 {[%clk 00:45:39]} {[%emt 00:00:57]}
33. Rde2 {[%clk 00:23:05]} {[%emt 00:00:50]} b4 {[%clk 00:45:43]} {[%emt
00:00:26]} 34. Bd2 {[%clk 00:23:20]} {[%emt 00:00:15]} Rd8 {[%clk 00:45:59]}
{[%emt 00:00:13]} 35. Re3 {[%clk 00:23:38]} {[%emt 00:00:12]} Qb5 {[%clk
00:45:34]} {[%emt 00:00:54]} 36. Qe4 {[%clk 00:22:19]} {[%emt 00:01:51]} Bd5
{[%clk 00:45:19]} {[%emt 00:00:44]} 37. Qf5 {[%clk 00:21:34]} {[%emt 00:01:15]}
Rg5 {[%clk 00:45:36]} {[%emt 00:00:13]} 38. Qh3 {[%clk 00:21:51]} {[%emt
00:00:14]} Bc4 {[%clk 00:44:45]} {[%emt 00:01:20]} 39. Ree2 {[%clk 00:21:11]}
{[%emt 00:01:10]} Bxd3 {[%clk 00:44:21]} {[%emt 00:00:54]} 40. Qe6+ {[%clk
00:21:35]} {[%emt 00:00:05]} Kh8 {[%clk 00:44:36]} {[%emt 00:00:13]} 41. Bxg5
{[%clk 00:21:59]} {[%emt 00:00:08]} fxg5 {[%clk 00:44:50]} {[%emt 00:00:16]} 42.
Qe7 {[%clk 00:20:57]} {[%emt 00:01:32]} Qd7 {[%clk 00:40:15]} {[%emt 00:05:04]}
43. Qxg5 {[%clk 00:20:19]} {[%emt 00:01:09]} h6 {[%clk 00:39:39]} {[%emt
00:01:06]} 44. Qh4 {[%clk 00:20:13]} {[%emt 00:00:36]} Bxe2+ {[%clk 00:39:41]}
{[%emt 00:00:27]} 45. Rxe2 {[%clk 00:20:38]} {[%emt 00:00:05]} Qd1+ {[%clk
00:40:06]} {[%emt 00:00:06]} 46. Qe1 {[%clk 00:18:28]} {[%emt 00:02:39]} Qxe1+
{[%clk 00:37:47]} {[%emt 00:02:48]} 47. Kxe1 {[%clk 00:18:57]} {[%emt
00:00:02]} a4 {[%clk 00:37:26]} {[%emt 00:00:51]} 48. Rxe5 {[%clk 00:18:21]}
{[%emt 00:01:06]} Ra8 {[%clk 00:37:49]} {[%emt 00:00:06]} 49. Re2 {[%clk
00:18:40]} {[%emt 00:00:11]} a3 {[%clk 00:38:13]} {[%emt 00:00:06]} 50. bxa3
{[%clk 00:19:06]} {[%emt 00:00:04]} bxa3 {[%clk 00:38:39]} {[%emt 00:00:04]} 51.
Ra2 {[%clk 00:19:27]} {[%emt 00:00:09]} Kh7 {[%clk 00:39:06]} {[%emt 00:00:04]}
52. Kd2 {[%clk 00:18:56]} {[%emt 00:01:01]} Kg6 {[%clk 00:39:25]} {[%emt
00:00:11]} 53. Ke3 {[%clk 00:18:55]} {[%emt 00:00:30]} Kf5 {[%clk 00:39:48]}
{[%emt 00:00:07]} 54. Kd3 {[%clk 00:19:16]} {[%emt 00:00:09]} Kf4 {[%clk
00:40:01]} {[%emt 00:00:17]} 55. Ke2 {[%clk 00:19:40]} {[%emt 00:00:06]} g5
{[%clk 00:38:09]} {[%emt 00:02:21]} 56. Kf2 {[%clk 00:19:51]} {[%emt 00:00:20]}
h5 {[%clk 00:37:54]} {[%emt 00:00:46]} 57. Kg2 {[%clk 00:16:06]} {[%emt
00:04:14]} Ke3 {[%clk 00:37:59]} {[%emt 00:00:24]} 58. Kg3 {[%clk 00:16:20]}
{[%emt 00:00:18]} Ra4 {[%clk 00:38:14]} {[%emt 00:00:15]} 59. Kh3 {[%clk
00:16:02]} {[%emt 00:00:48]} Kd3 {[%clk 00:38:27]} {[%emt 00:00:17]} 60. f4
{[%clk 00:16:15]} {[%emt 00:00:16]} gxf4 {[%clk 00:38:46]} {[%emt 00:00:10]} 61.
Kh4 {[%clk 00:16:40]} {[%emt 00:00:06]} f3+ {[%clk 00:39:04]} {[%emt 00:00:12]}
62. Kxh5 {[%clk 00:17:06]} {[%emt 00:00:04]} Ke3 {[%clk 00:39:29]} {[%emt
00:00:06]} 63. h4 {[%clk 00:17:25]} {[%emt 00:00:12]} f2 {[%clk 00:39:54]}
{[%emt 00:00:04]} 64. Ra1 {[%clk 00:17:50]} {[%emt 00:00:04]} a2 {[%clk
00:40:18]} {[%emt 00:00:07]} 65. Kg5 {[%clk 00:18:12]} {[%emt 00:00:08]} Ke2
{[%clk 00:40:44]} {[%emt 00:00:04]} 0-1